{"text_format":"1","workbook":"xlsx","n_sheets":10,"sheets":["Menu","CADASTRO","INFORMAÇÕES","OBJETIVOS","AVALIAÇÃO","FOTO","FICHA","Aux","Dash","Instruções"],"not_rendered":{"charts":7,"images":37,"macros":1,"external_links":0,"defined_names":38,"comments":0,"pivot_tables":0},"unopened":[],"bounds":{"document_bytes":16777216,"sheet_cells":100000,"rows_first":2000,"rows_last":500,"rows_between":2000,"halvings":0,"cell_chars":16384,"cell_head_chars":4096},"cells_cut":0,"cells_raw":0,"read":"whole","date_system":"1900"}

{"sheet":"Menu","index":0,"n_rows":0,"n_cols":0,"rows_kept":0,"cut":false,"hidden":false,"merged":[]}

{"sheet":"CADASTRO","index":1,"n_rows":19,"n_cols":14,"rows_kept":19,"cut":false,"hidden":false,"merged":[[12,6,12,13],[12,1,13,1],[12,3,13,3],[12,5,13,5],[12,2,13,2],[12,4,13,4]]}
[]
[]
[]
[]
[]
[]
[]
[]
[]
[]
[]
[null,"Cadastro de Personas\nFaça o cadastro das personas com as informações referentes a elas."]
[null,"Nome da Persona","Gênero","Cargo / Ocupação\nO que a persona faz?","Idade","Escolaridade","Numa escala de 0 a 10, indique os perfis que mais representa a persona, onde 0 não representa e 10 é a representação máxima."]
[null,null,null,null,null,null,"Competitivo","Inovador","Proativo","Exigente","Comprometido","Organizado","Empreendedor","Líder"]
[null,"João Paulo, o empreendedor","Masculino","Empreendedor",35,"Ensino Superior",10,5,5,5,5,5,10,5]
[null,"Maria Lucia, a advogada","Feminino","Advogada",28,"Ensino Superior",5,5,5,10,10,10,5,5]
[null,"Felipe Alves, o diretor comercial","Masculino","Diretor",32,"Pós Graduado",10,10,5,10,5,5,5,5]
[null,"Adriana, A administradora","Feminino","Administradora",34,"Pós Graduado",5,10,10,5,10,5,5,10]
[null,"Pedro, o Jornalista","Masculino","Comunicativo",44,"Ensino Médio",5,10,5,10,5,5,5,5]

{"sheet":"INFORMAÇÕES","index":2,"n_rows":29,"n_cols":12,"rows_kept":29,"cut":false,"hidden":false,"merged":[[12,1,13,1],[12,2,13,2],[12,3,12,11]]}
[]
[]
[]
[]
[]
[]
[]
[]
[]
[]
[]
[null,"Informações da Persona\nInsira mais informações referente às personas cadastradas."]
[null,"Nome da Persona","Onde a persona trabalha?\nInforme a área de atuação da persona","Numa escala de 0 a 10, indique os meios de comunicação utilizados pela persona, onde 0 é não utilizado e 10 é muito utilizado."]
[null,null,null,"Facebook","Instagram","Whatsapp","E-mail","SMS","Telegram","Twitter","Ligação","Outros"]
[null,{"$f":"IF(CADASTRO!B15=\"\",\"\",CADASTRO!B15)","v":"João Paulo, o empreendedor"},"Startup de tecnologia",8,5,10,2,0,1,0,5,0]
[null,{"$f":"IF(CADASTRO!B16=\"\",\"\",CADASTRO!B16)","v":"Maria Lucia, a advogada"},"Empresa de cobrança",0,0,0,10,0,0,0,5,0]
[null,{"$f":"IF(CADASTRO!B17=\"\",\"\",CADASTRO!B17)","v":"Felipe Alves, o diretor comercial"},"Multinacional ABC",10,10,10,0,0,0,0,0,0]
[null,{"$f":"IF(CADASTRO!B18=\"\",\"\",CADASTRO!B18)","v":"Adriana, A administradora"},"BA",5,5,5,10,0,0,0,8,0]
[null,{"$f":"IF(CADASTRO!B19=\"\",\"\",CADASTRO!B19)","v":"Pedro, o Jornalista"},"Sebrae ",10,10,10,10,5,0,2,2,0]
[null,{"$f":"IF(CADASTRO!B20=\"\",\"\",CADASTRO!B20)","v":""}]
[null,{"$f":"IF(CADASTRO!B21=\"\",\"\",CADASTRO!B21)","v":""}]
[null,{"$f":"IF(CADASTRO!B22=\"\",\"\",CADASTRO!B22)","v":""}]
[null,{"$f":"IF(CADASTRO!B23=\"\",\"\",CADASTRO!B23)","v":""}]
[null,{"$f":"IF(CADASTRO!B24=\"\",\"\",CADASTRO!B24)","v":""}]
[null,{"$f":"IF(CADASTRO!B25=\"\",\"\",CADASTRO!B25)","v":""}]
[null,{"$f":"IF(CADASTRO!B26=\"\",\"\",CADASTRO!B26)","v":""}]
[null,{"$f":"IF(CADASTRO!B27=\"\",\"\",CADASTRO!B27)","v":""}]
[null,{"$f":"IF(CADASTRO!B28=\"\",\"\",CADASTRO!B28)","v":""}]
[null,{"$f":"IF(CADASTRO!B29=\"\",\"\",CADASTRO!B29)","v":""}]

{"sheet":"OBJETIVOS","index":3,"n_rows":29,"n_cols":4,"rows_kept":29,"cut":false,"hidden":false,"merged":[[12,1,13,1],[12,2,13,2],[12,3,13,3],[11,1,11,3]]}
[]
[]
[]
[]
[]
[]
[]
[]
[]
[]
[]
[null,"Objetivos da Persona\nInsira os principais objetivos e principais problemas/desafios referente às personas cadastradas."]
[null,"Nome da Persona","Quais os principais objetivos da persona?","Quais os principais problemas/desafios da persona?"]
[]
[null,{"$f":"IF(CADASTRO!B15=\"\",\"\",CADASTRO!B15)","v":"João Paulo, o empreendedor"},"Atingir mais clientes","Não conhece marketing digital"]
[null,{"$f":"IF(CADASTRO!B16=\"\",\"\",CADASTRO!B16)","v":"Maria Lucia, a advogada"},"Resolver a pendência financeira do cliente","Concretizar a negociação com o cliente"]
[null,{"$f":"IF(CADASTRO!B17=\"\",\"\",CADASTRO!B17)","v":"Felipe Alves, o diretor comercial"},"Atingir a meta de vendas da equipe","Melhorar seus canais de vendas"]
[null,{"$f":"IF(CADASTRO!B18=\"\",\"\",CADASTRO!B18)","v":"Adriana, A administradora"},"Presença digital","Falta de clientes"]
[null,{"$f":"IF(CADASTRO!B19=\"\",\"\",CADASTRO!B19)","v":"Pedro, o Jornalista"},"Vender mais","Baixa vendas"]
[null,{"$f":"IF(CADASTRO!B20=\"\",\"\",CADASTRO!B20)","v":""}]
[null,{"$f":"IF(CADASTRO!B21=\"\",\"\",CADASTRO!B21)","v":""}]
[null,{"$f":"IF(CADASTRO!B22=\"\",\"\",CADASTRO!B22)","v":""}]
[null,{"$f":"IF(CADASTRO!B23=\"\",\"\",CADASTRO!B23)","v":""}]
[null,{"$f":"IF(CADASTRO!B24=\"\",\"\",CADASTRO!B24)","v":""}]
[null,{"$f":"IF(CADASTRO!B25=\"\",\"\",CADASTRO!B25)","v":""}]
[null,{"$f":"IF(CADASTRO!B26=\"\",\"\",CADASTRO!B26)","v":""}]
[null,{"$f":"IF(CADASTRO!B27=\"\",\"\",CADASTRO!B27)","v":""}]
[null,{"$f":"IF(CADASTRO!B28=\"\",\"\",CADASTRO!B28)","v":""}]
[null,{"$f":"IF(CADASTRO!B29=\"\",\"\",CADASTRO!B29)","v":""}]

{"sheet":"AVALIAÇÃO","index":4,"n_rows":29,"n_cols":3,"rows_kept":29,"cut":false,"hidden":false,"merged":[[12,1,13,1],[12,2,13,2],[11,1,11,2]]}
[]
[]
[]
[]
[]
[]
[]
[]
[]
[]
[]
[null,"Avaliação da Persona\nInsira como sua empresa pode ajudar a persona cadastrada"]
[null,"Nome da Persona","Como sua empresa pode ajudar a persona nos objetivos e problemas/desafios?"]
[]
[null,{"$f":"IF(CADASTRO!B15=\"\",\"\",CADASTRO!B15)","v":"João Paulo, o empreendedor"},"Fazendo treinamentos e consultorias de marketing digital."]
[null,{"$f":"IF(CADASTRO!B16=\"\",\"\",CADASTRO!B16)","v":"Maria Lucia, a advogada"},"Desenvolver canais de comunicação com cliente."]
[null,{"$f":"IF(CADASTRO!B17=\"\",\"\",CADASTRO!B17)","v":"Felipe Alves, o diretor comercial"},"Desenvolver canais de vendas para facilitar o acesso do cliente final aos produtos disponibilizados."]
[null,{"$f":"IF(CADASTRO!B18=\"\",\"\",CADASTRO!B18)","v":"Adriana, A administradora"},"teste 1"]
[null,{"$f":"IF(CADASTRO!B19=\"\",\"\",CADASTRO!B19)","v":"Pedro, o Jornalista"},"teste 2"]
[null,{"$f":"IF(CADASTRO!B20=\"\",\"\",CADASTRO!B20)","v":""}]
[null,{"$f":"IF(CADASTRO!B21=\"\",\"\",CADASTRO!B21)","v":""}]
[null,{"$f":"IF(CADASTRO!B22=\"\",\"\",CADASTRO!B22)","v":""}]
[null,{"$f":"IF(CADASTRO!B23=\"\",\"\",CADASTRO!B23)","v":""}]
[null,{"$f":"IF(CADASTRO!B24=\"\",\"\",CADASTRO!B24)","v":""}]
[null,{"$f":"IF(CADASTRO!B25=\"\",\"\",CADASTRO!B25)","v":""}]
[null,{"$f":"IF(CADASTRO!B26=\"\",\"\",CADASTRO!B26)","v":""}]
[null,{"$f":"IF(CADASTRO!B27=\"\",\"\",CADASTRO!B27)","v":""}]
[null,{"$f":"IF(CADASTRO!B28=\"\",\"\",CADASTRO!B28)","v":""}]
[null,{"$f":"IF(CADASTRO!B29=\"\",\"\",CADASTRO!B29)","v":""}]

{"sheet":"FOTO","index":5,"n_rows":29,"n_cols":4,"rows_kept":29,"cut":false,"hidden":false,"merged":[[11,1,11,2],[12,1,13,1],[12,2,13,2]]}
[]
[]
[]
[]
[]
[]
[]
[]
[]
[]
[]
[null,"Foto da Persona\nInsira uma foto que melhor represente a persona cadastrada"]
[null,"Nome da Persona","Insira a foto referente a persona"]
[]
[null,{"$f":"IF(CADASTRO!B15=\"\",\"\",CADASTRO!B15)","v":"João Paulo, o empreendedor"},null,"Foto01"]
[null,{"$f":"IF(CADASTRO!B16=\"\",\"\",CADASTRO!B16)","v":"Maria Lucia, a advogada"},null,"Foto02"]
[null,{"$f":"IF(CADASTRO!B17=\"\",\"\",CADASTRO!B17)","v":"Felipe Alves, o diretor comercial"},null,"Foto03"]
[null,{"$f":"IF(CADASTRO!B18=\"\",\"\",CADASTRO!B18)","v":"Adriana, A administradora"},null,"Foto04"]
[null,{"$f":"IF(CADASTRO!B19=\"\",\"\",CADASTRO!B19)","v":"Pedro, o Jornalista"},null,"Foto05"]
[null,{"$f":"IF(CADASTRO!B20=\"\",\"\",CADASTRO!B20)","v":""},null,"Foto06"]
[null,{"$f":"IF(CADASTRO!B21=\"\",\"\",CADASTRO!B21)","v":""},null,"Foto07"]
[null,{"$f":"IF(CADASTRO!B22=\"\",\"\",CADASTRO!B22)","v":""},null,"Foto08"]
[null,{"$f":"IF(CADASTRO!B23=\"\",\"\",CADASTRO!B23)","v":""},null,"Foto09"]
[null,{"$f":"IF(CADASTRO!B24=\"\",\"\",CADASTRO!B24)","v":""},null,"Foto10"]
[null,{"$f":"IF(CADASTRO!B25=\"\",\"\",CADASTRO!B25)","v":""},null,"Foto11"]
[null,{"$f":"IF(CADASTRO!B26=\"\",\"\",CADASTRO!B26)","v":""},null,"Foto12"]
[null,{"$f":"IF(CADASTRO!B27=\"\",\"\",CADASTRO!B27)","v":""},null,"Foto13"]
[null,{"$f":"IF(CADASTRO!B28=\"\",\"\",CADASTRO!B28)","v":""},null,"Foto14"]
[null,{"$f":"IF(CADASTRO!B29=\"\",\"\",CADASTRO!B29)","v":""},null,"Foto15"]

{"sheet":"FICHA","index":6,"n_rows":42,"n_cols":13,"rows_kept":42,"cut":false,"hidden":false,"merged":[[27,2,28,3],[31,2,32,3],[35,2,36,3],[41,2,42,12],[11,3,11,6],[21,1,23,3],[13,7,18,7],[19,7,20,7],[21,8,23,12]]}
[]
[]
[]
[]
[]
[]
[]
[]
[]
[]
[]
[null,"Selecione a persona desejada:",null,"Adriana, A administradora",null,null,null,null,null,null,null,null,{"$f":"VLOOKUP(B22,FOTO!$B$15:$D$29,3,0)","v":"Foto04"}]
[]
[null,null,null,null,null,null,null,{"$f":"IFERROR(VLOOKUP(B22,CADASTRO!$B$15:$F$29,4,0),\"\")","v":34}]
[]
[]
[]
[]
[]
[null,null,null,null,null,null,null,"ANOS"]
[]
[null,{"$f":"D12","v":"Adriana, A administradora"}]
[]
[]
[]
[]
[null,null,"Empresa:"]
[null,null,{"$f":"IFERROR(VLOOKUP(B22,INFORMAÇÕES!$B$15:$D$29,2,0),\"\")","v":"BA"}]
[]
[]
[null,null,"Objetivo:"]
[null,null,{"$f":"IFERROR(VLOOKUP(B22,OBJETIVOS!$B$15:$D$29,2,0),\"\")","v":"Presença digital"}]
[]
[]
[null,null,"Desafios:"]
[null,null,{"$f":"IFERROR(VLOOKUP(B22,OBJETIVOS!$B$15:$D$29,3,0),\"\")","v":"Falta de clientes"}]
[]
[]
[]
[]
[null,null,"Como sua empresa pode ajudar a persona atingir os objetivos e enfrentar os desafios:"]
[null,null,{"$f":"IFERROR(VLOOKUP(B22,AVALIAÇÃO!$B$15:$C$29,2,0),\"\")","v":"teste 1"}]

{"sheet":"Aux","index":7,"n_rows":30,"n_cols":3,"rows_kept":30,"cut":false,"hidden":false,"merged":[]}
[{"$f":"IFERROR(VLOOKUP(FICHA!B22,CADASTRO!$B$15:$F$29,2,0),\"\")","v":"Feminino"},null,"Feminino"]
[null,null,"Masculino"]
[]
[]
[{"$f":"IFERROR(VLOOKUP(FICHA!B22,CADASTRO!$B$15:$F$29,5,0),\"\")","v":"Pós Graduado"},"Feminino","Masculino"]
["Ensino Médio",{"$f":"IF($B$5=$A$1,COUNTIF($A$5,A6),0)","v":0},{"$f":"IF($C$5=$A$1,COUNTIF($A$5,A6),0)","v":0}]
["Ensino Superior",{"$f":"IF($B$5=$A$1,COUNTIF($A$5,A7),0)","v":0},{"$f":"IF($C$5=$A$1,COUNTIF($A$5,A7),0)","v":0}]
["Pós Graduado",1,0]
["Mestrado",0,0]
["Doutorado",0,0]
[]
[null,null,"Geral"]
[{"$f":"INFORMAÇÕES!D14","v":"Facebook"},{"$f":"IFERROR(VLOOKUP(FICHA!$D$12,INFORMAÇÕES!$B$15:$L$29,3,0),\"\")","v":5},{"$f":"SUM(INFORMAÇÕES!$D$15:$D$29)","v":33}]
[{"$f":"INFORMAÇÕES!E14","v":"Instagram"},{"$f":"IFERROR(VLOOKUP(FICHA!$D$12,INFORMAÇÕES!$B$15:$L$29,4,0),\"\")","v":5},{"$f":"SUM(INFORMAÇÕES!$E$15:$E$29)","v":30}]
[{"$f":"INFORMAÇÕES!F14","v":"Whatsapp"},{"$f":"IFERROR(VLOOKUP(FICHA!$D$12,INFORMAÇÕES!$B$15:$L$29,5,0),\"\")","v":5},{"$f":"SUM(INFORMAÇÕES!$F$15:$F$29)","v":35}]
[{"$f":"INFORMAÇÕES!G14","v":"E-mail"},{"$f":"IFERROR(VLOOKUP(FICHA!$D$12,INFORMAÇÕES!$B$15:$L$29,6,0),\"\")","v":10},{"$f":"SUM(INFORMAÇÕES!$G$15:$G$29)","v":32}]
[{"$f":"INFORMAÇÕES!H14","v":"SMS"},{"$f":"IFERROR(VLOOKUP(FICHA!$D$12,INFORMAÇÕES!$B$15:$L$29,7,0),\"\")","v":0},{"$f":"SUM(INFORMAÇÕES!$H$15:$H$29)","v":5}]
[{"$f":"INFORMAÇÕES!I14","v":"Telegram"},{"$f":"IFERROR(VLOOKUP(FICHA!$D$12,INFORMAÇÕES!$B$15:$L$29,8,0),\"\")","v":0},{"$f":"SUM(INFORMAÇÕES!$I$15:$I$29)","v":1}]
[{"$f":"INFORMAÇÕES!J14","v":"Twitter"},{"$f":"IFERROR(VLOOKUP(FICHA!$D$12,INFORMAÇÕES!$B$15:$L$29,9,0),\"\")","v":0},{"$f":"SUM(INFORMAÇÕES!$J$15:$J$29)","v":2}]
[{"$f":"INFORMAÇÕES!K14","v":"Ligação"},{"$f":"IFERROR(VLOOKUP(FICHA!$D$12,INFORMAÇÕES!$B$15:$L$29,10,0),\"\")","v":8},{"$f":"SUM(INFORMAÇÕES!$K$15:$K$29)","v":20}]
[{"$f":"INFORMAÇÕES!L14","v":"Outros"},{"$f":"IFERROR(VLOOKUP(FICHA!$D$12,INFORMAÇÕES!$B$15:$L$29,11,0),\"\")","v":0},{"$f":"SUM(INFORMAÇÕES!$L$15:$L$29)","v":0}]
[null,null,"Geral"]
["Competitivo",{"$f":"IFERROR(VLOOKUP(FICHA!$D$12,CADASTRO!$B$15:$N$29,6,0),\"\")","v":5},{"$f":"SUM(CADASTRO!$G$15:$G$29)","v":35}]
["Inovador",{"$f":"IFERROR(VLOOKUP(FICHA!$D$12,CADASTRO!$B$15:$N$29,7,0),\"\")","v":10},{"$f":"SUM(CADASTRO!$H$15:$H$29)","v":40}]
["Proativo",{"$f":"IFERROR(VLOOKUP(FICHA!$D$12,CADASTRO!$B$15:$N$29,8,0),\"\")","v":10},{"$f":"SUM(CADASTRO!$I$15:$I$29)","v":30}]
["Exigente",{"$f":"IFERROR(VLOOKUP(FICHA!$D$12,CADASTRO!$B$15:$N$29,9,0),\"\")","v":5},{"$f":"SUM(CADASTRO!$J$15:$J$29)","v":40}]
["Comprometido",{"$f":"IFERROR(VLOOKUP(FICHA!$D$12,CADASTRO!$B$15:$N$29,10,0),\"\")","v":10},{"$f":"SUM(CADASTRO!$K$15:$K$29)","v":35}]
["Organizado",{"$f":"IFERROR(VLOOKUP(FICHA!$D$12,CADASTRO!$B$15:$N$29,11,0),\"\")","v":5},{"$f":"SUM(CADASTRO!$L$15:$L$29)","v":30}]
["Empreendedor",{"$f":"IFERROR(VLOOKUP(FICHA!$D$12,CADASTRO!$B$15:$N$29,12,0),\"\")","v":5},{"$f":"SUM(CADASTRO!$M$15:$M$29)","v":30}]
["Líder",{"$f":"IFERROR(VLOOKUP(FICHA!$D$12,CADASTRO!$B$15:$N$29,13,0),\"\")","v":10},{"$f":"SUM(CADASTRO!$N$15:$N$29)","v":30}]

{"sheet":"Dash","index":8,"n_rows":71,"n_cols":6,"rows_kept":71,"cut":false,"hidden":false,"merged":[]}
[]
[]
[]
[]
[]
[]
[]
[]
[]
[]
[]
[]
[]
[]
[]
[]
[]
[]
[]
[]
[]
[]
[]
[]
[]
[]
[]
[]
[]
[]
[]
[]
[]
[]
[]
[]
[]
[]
[]
[]
[]
[]
[]
[]
[]
[]
[]
[]
[]
[]
[]
[]
[]
[]
[]
[]
[]
[]
[]
[]
[null,"Masculino",{"$f":"COUNTIF(CADASTRO!$C$15:$C$29,Dash!B61)","v":3},null,"Ensino Médio",{"$f":"COUNTIF(CADASTRO!$F$15:$F$29,E61)","v":1}]
[null,"Feminino",{"$f":"COUNTIF(CADASTRO!$C$15:$C$29,Dash!B62)","v":2},null,"Ensino Superior",{"$f":"COUNTIF(CADASTRO!$F$15:$F$29,E62)","v":2}]
[null,null,null,null,"Pós Graduado",{"$f":"COUNTIF(CADASTRO!$F$15:$F$29,E63)","v":2}]
[null,null,null,null,"Mestrado",{"$f":"COUNTIF(CADASTRO!$F$15:$F$29,E64)","v":0}]
[null,null,null,null,"Doutorado",{"$f":"COUNTIF(CADASTRO!$F$15:$F$29,E65)","v":0}]
[]
[]
[]
[]
[]
[null,{"$f":"CONCATENATE(\"Foram cadastradas \",COUNTA(persona),\" Personas\")","v":"Foram cadastradas 5 Personas"}]

{"sheet":"Instruções","index":9,"n_rows":0,"n_cols":0,"rows_kept":0,"cut":false,"hidden":false,"merged":[]}